[Event "44th Chess Olympiad Open 2022"]
[Site "Chennai"]
[Date "2022.08.06"]
[Round "8.63"]
[White "Joel O. Ebiekuta"]
[Black "Chahin Godoy, Angel Eduardo"]
[Result "1-0"]
[WhiteElo "1848"]
[BlackElo "1844"]
[Annotator "NA RC"]
[PlyCount "91"]
[EventDate "2022.??.??"]
[TimeControl "60"]

1. e4 {[%emt 0:00:04]} e6 {[%emt 0:00:22]} 2. Nf3 {[%emt 0:00:15]} d5 {[%emt 0:
00:00]} 3. exd5 {[%emt 0:03:32]} exd5 {[%emt 0:00:05]} 4. d4 {[%emt 0:00:12]}
Bd6 {[%emt 0:00:47]} 5. Bd3 {[%emt 0:00:13]} Ne7 {[%emt 0:00:07]} 6. O-O {
[%emt 0:00:06]} O-O {[%emt 0:00:07]} 7. Re1 {[%emt 0:00:41]} Bf5 {[%emt 0:00:
00]} 8. c3 {[%emt 0:00:35]} Nbc6 {[%emt 0:02:01]} 9. Bg5 {[%emt 0:00:38]} f6 {
[%emt 0:02:01]} 10. Bh4 {[%emt 0:00:11]} Qd7 {[%emt 0:02:02]} 11. Bg3 {[%emt 0:
00:00]} Bxg3 {[%emt 0:11:28]} 12. hxg3 {[%emt 0:00:52]} Rfe8 {[%emt 0:01:07]}
13. Na3 {[%emt 0:00:39]} Rad8 {[%emt 0:04:56]} 14. Nc2 {[%emt 0:07:54]} a6 {
[%emt 0:16:33]} 15. Ne3 {[%emt 0:11:42]} Be4 {[%emt 0:01:03]} 16. Bxe4 {
[%emt 0:01:42]} dxe4 {[%emt 0:00:05]} 17. Nd2 {[%emt 0:00:11]} Qe6 {[%emt 0:00:
00]} 18. g4 {[%emt 0:03:15]} g6 {[%emt 0:03:37]} 19. Qc2 {[%emt 0:01:13]} f5 {
[%emt 0:00:12]} 20. gxf5 {[%emt 0:09:25]} gxf5 {[%emt 0:00:15]} 21. g3 {
[%emt 0:00:20]} Nd5 {[%emt 0:15:31]} 22. Ng2 {[%emt 0:05:08]} Qg6 {[%emt 0:00:
00]} 23. Qb3 {[%emt 0:01:05]} Na5 {[%emt 0:04:06]} 24. Qc2 {[%emt 0:04:56]} Nc6
{[%emt 0:01:19]} 25. a3 {[%emt 0:00:57]} Qg5 {[%emt 0:00:43]} 26. Nf1 {[%emt 0:
00:00]} Kh8 {[%emt 0:01:41]} 27. Qd2 {[%emt 0:00:20]} Qg7 {[%emt 0:02:20]} 28.
Nfe3 {[%emt 0:01:56]} Nxe3 {[%emt 0:00:45]} 29. Qxe3 {[%emt 0:00:10]} Ne7 {
[%emt 0:05:44]} 30. Nf4 {[%emt 0:02:51]} Nd5 {[%emt 0:01:11]} 31. Nxd5 {
[%emt 0:00:26]} Rxd5 {[%emt 0:00:04]} 32. Kg2 {[%emt 0:00:20]} Rd6 {[%emt 0:00:
00]} 33. Rh1 {[%emt 0:00:54]} Ree6 {[%emt 0:01:43]} 34. Rh5 {[%emt 0:00:25]}
Rh6 {[%emt 0:01:56]} 35. Rah1 {[%emt 0:02:17]} Rxh5 {[%emt 0:00:11]} 36. Rxh5 {
[%emt 0:00:43]} Qf7 {[%emt 0:01:47]} 37. Qg5 {[%emt 0:00:49]} Rf6 {[%emt 0:00:
00]} 38. Rh4 {[%emt 0:01:32]} Rg6 {[%emt 0:00:33]} 39. Qf4 {[%emt 0:00:39]} Qd5
{[%emt 0:00:15]} 40. Qxc7 {[%emt 0:01:21]} Rg7 {[%emt 0:01:01]} 41. Qf4 {
[%emt 0:33:25]} Rd7 {[%emt 0:31:28]} 42. Rh5 {[%emt 0:07:45]} e3+ {[%emt 0:00:
00]} 43. Qf3 {[%emt 0:00:00]} e2 {[%emt 0:00:00]} 44. Qxd5 {[%emt 0:00:00]}
e1=N+ {[%emt 0:00:00]} 45. Kf1 {[%emt 0:00:00]} Rxd5 {[%emt 0:00:00]} 46. Kxe1
{[%emt 0:00:00]} 1-0

[Event "44th Chess Olympiad Open 2022"]
[Site "Chennai"]
[Date "2022.08.06"]
[Round "8.64"]
[White "Pace, Colin"]
[Black "Alegre, Fabio Costa"]
[Result "0-1"]
[WhiteElo "2159"]
[BlackElo "1809"]
[Annotator "NA RC"]
[PlyCount "70"]
[EventDate "2022.??.??"]
[TimeControl "60"]

1. e4 {[%emt 0:00:02]} c5 {[%emt 0:00:06]} 2. Nf3 {[%emt 0:00:08]} g6 {[%emt 0:
00:00]} 3. d4 {[%emt 0:00:37]} cxd4 {[%emt 0:00:07]} 4. Nxd4 {[%emt 0:00:04]}
Bg7 {[%emt 0:00:03]} 5. Nc3 {[%emt 0:01:15]} Nc6 {[%emt 0:00:06]} 6. Nb3 {
[%emt 0:00:51]} Nf6 {[%emt 0:00:39]} 7. Be2 {[%emt 0:00:11]} a6 {[%emt 0:02:45]
} 8. O-O {[%emt 0:04:07]} O-O {[%emt 0:01:13]} 9. Re1 {[%emt 0:00:20]} b5 {
[%emt 0:01:19]} 10. Bf1 {[%emt 0:02:23]} d6 {[%emt 0:00:28]} 11. Bg5 {[%emt 0:
00:00]} Be6 {[%emt 0:01:35]} 12. a4 {[%emt 0:09:10]} bxa4 {[%emt 0:02:41]} 13.
Rxa4 {[%emt 0:08:26]} d5 {[%emt 0:00:29]} 14. Nc5 {[%emt 0:18:48]} Bg4 {
[%emt 0:01:25]} 15. f3 {[%emt 0:15:49]} d4 {[%emt 0:21:44]} 16. Bxf6 {[%emt 0:
00:00]} exf6 {[%emt 0:01:35]} 17. Nd5 {[%emt 0:01:22]} Be6 {[%emt 0:00:59]} 18.
Bc4 {[%emt 0:02:05]} Qd6 {[%emt 0:09:16]} 19. b4 {[%emt 0:15:02]} Rfb8 {
[%emt 0:14:00]} 20. Nxa6 {[%emt 0:02:07]} Bxd5 {[%emt 0:05:19]} 21. Bxd5 {
[%emt 0:02:04]} Rb6 {[%emt 0:00:37]} 22. Qa1 {[%emt 0:02:10]} f5 {[%emt 0:00:
00]} 23. Qa2 {[%emt 0:02:47]} Ra7 {[%emt 0:02:46]} 24. Rb1 {[%emt 0:00:55]} Be5
{[%emt 0:01:58]} 25. h3 {[%emt 0:00:49]} Bf4 {[%emt 0:08:06]} 26. Nc5 {[%emt 0:
00:00]} Rxa4 {[%emt 0:05:05]} 27. Qxa4 {[%emt 0:00:48]} Nxb4 {[%emt 0:02:26]}
28. Qe8+ {[%emt 0:01:54]} Kg7 {[%emt 0:00:01]} 29. Qxf7+ {[%emt 0:00:49]} Kh6 {
[%emt 0:00:02]} 30. Ne6 {[%emt 0:00:52]} Nxd5 {[%emt 0:02:21]} 31. Qg7+ {
[%emt 0:01:04]} Kh5 {[%emt 0:00:01]} 32. g4+ {[%emt 0:00:19]} Kh4 {[%emt 0:00:
00]} 33. exd5 {[%emt 0:01:39]} Be3+ {[%emt 0:00:12]} 34. Kf1 {[%emt 0:01:06]}
Rxb1+ {[%emt 0:00:18]} 35. Ke2 {[%emt 0:00:05]} Qh2+ {[%emt 0:00:09]} 0-1

[Event "44th Chess Olympiad Open 2022"]
[Site "Chennai"]
[Date "2022.08.06"]
[Round "8.64"]
[White "Pereira, Sergio Murilo de Ar"]
[Black "Darmanin, Jake"]
[Result "1/2-1/2"]
[WhiteElo "2093"]
[BlackElo "2101"]
[Annotator "RC"]
[PlyCount "177"]
[EventDate "2022.??.??"]
[TimeControl "60"]

1. e4 {[%emt 0:00:07]} e5 {[%emt 0:00:11]} 2. Nf3 {[%emt 0:00:10]} Nc6 {
[%emt 0:00:14]} 3. Bc4 {[%emt 0:00:31]} Nf6 {[%emt 0:00:20]} 4. Ng5 {[%emt 0:
00:00]} d5 {[%emt 0:00:14]} 5. exd5 {[%emt 0:00:21]} Na5 {[%emt 0:00:12]} 6.
Bb5+ {[%emt 0:00:08]} c6 {[%emt 0:00:09]} 7. dxc6 {[%emt 0:00:08]} bxc6 {
[%emt 0:00:02]} 8. Bd3 {[%emt 0:00:41]} Ng4 {[%emt 0:00:53]} 9. Ne4 {[%emt 0:
00:00]} f5 {[%emt 0:00:37]} 10. Be2 {[%emt 0:00:24]} h5 {[%emt 0:00:36]} 11. h3
{[%emt 0:00:19]} fxe4 {[%emt 0:01:01]} 12. hxg4 {[%emt 0:00:05]} Bc5 {[%emt 0:
00:00]} 13. b4 {[%emt 0:01:46]} O-O {[%emt 0:00:27]} 14. bxc5 {[%emt 0:04:50]}
Qd4 {[%emt 0:00:21]} 15. O-O {[%emt 0:00:27]} Qxa1 {[%emt 0:00:07]} 16. Nc3 {
[%emt 0:00:06]} e3 {[%emt 0:00:23]} 17. gxh5 {[%emt 0:02:36]} exf2+ {[%emt 0:
00:00]} 18. Rxf2 {[%emt 0:00:06]} Rxf2 {[%emt 0:22:51]} 19. Kxf2 {[%emt 0:00:
00]} Bf5 {[%emt 0:05:51]} 20. Ba3 {[%emt 0:09:57]} Qxd1 {[%emt 0:01:32]} 21.
Bxd1 {[%emt 0:00:06]} Rf8 {[%emt 0:14:37]} 22. Ke1 {[%emt 0:05:23]} Nc4 {
[%emt 0:08:52]} 23. Bc1 {[%emt 0:07:38]} e4 {[%emt 0:00:40]} 24. Be2 {[%emt 0:
00:00]} Ne5 {[%emt 0:00:27]} 25. Bb2 {[%emt 0:00:15]} Re8 {[%emt 0:05:30]} 26.
Nd1 {[%emt 0:09:47]} Re7 {[%emt 0:12:16]} 27. Ne3 {[%emt 0:01:42]} Bd7 {
[%emt 0:01:29]} 28. Kf2 {[%emt 0:04:01]} Kh7 {[%emt 0:04:44]} 29. d4 {[%emt 0:
00:00]} exd3 {[%emt 0:08:15]} 30. cxd3 {[%emt 0:00:31]} Be8 {[%emt 0:02:35]}
31. d4 {[%emt 0:08:24]} Rf7+ {[%emt 0:00:13]} 32. Ke1 {[%emt 0:01:23]} Rb7 {
[%emt 0:00:07]} 33. Bc3 {[%emt 0:00:39]} Nd7 {[%emt 0:01:14]} 34. Bf3 {[%emt 0:
00:00]} Nf6 {[%emt 0:00:31]} 35. g4 {[%emt 0:00:41]} Rb1+ {[%emt 0:00:53]} 36.
Ke2 {[%emt 0:04:28]} Kg8 {[%emt 0:00:38]} 37. Nf5 {[%emt 0:01:16]} Kf8 {
[%emt 0:01:01]} 38. Nd6 {[%emt 0:01:58]} Nd5 {[%emt 0:01:27]} 39. Bd2 {[%emt 0:
00:00]} Rb2 {[%emt 0:00:03]} 40. a3 {[%emt 0:00:38]} Ra2 {[%emt 0:02:04]} 41.
g5 {[%emt 0:06:54]} Rxa3 {[%emt 0:20:13]} 42. h6 {[%emt 0:08:45]} gxh6 {
[%emt 0:03:28]} 43. gxh6 {[%emt 0:04:07]} Bd7 {[%emt 0:02:30]} 44. Ne4 {
[%emt 0:05:49]} Kg8 {[%emt 0:02:46]} 45. Ng5 {[%emt 0:01:49]} Nf6 {[%emt 0:00:
00]} 46. Bf4 {[%emt 0:02:28]} Ra2+ {[%emt 0:02:42]} 47. Kf1 {[%emt 0:00:41]}
Ra1+ {[%emt 0:01:15]} 48. Kg2 {[%emt 0:00:37]} Be8 {[%emt 0:02:08]} 49. Be4 {
[%emt 0:00:52]} Ra2+ {[%emt 0:00:25]} 50. Kf1 {[%emt 0:00:42]} Ra1+ {[%emt 0:
00:00]} 51. Kg2 {[%emt 0:01:27]} Ra2+ {[%emt 0:00:20]} 52. Kh3 {[%emt 0:00:04]}
Bd7+ {[%emt 0:00:20]} 53. Kh4 {[%emt 0:00:10]} Re2 {[%emt 0:00:51]} 54. h7+ {
[%emt 0:01:19]} Nxh7 {[%emt 0:00:28]} 55. Bxh7+ {[%emt 0:01:18]} Kg7 {[%emt 0:
00:00]} 56. Be5+ {[%emt 0:00:48]} Kh6 {[%emt 0:00:25]} 57. Bd3 {[%emt 0:00:57]}
Rf2 {[%emt 0:00:55]} 58. Be4 {[%emt 0:00:53]} a5 {[%emt 0:00:44]} 59. Nf3 {
[%emt 0:01:07]} a4 {[%emt 0:00:28]} 60. d5 {[%emt 0:00:39]} cxd5 {[%emt 0:00:
00]} 61. Bxd5 {[%emt 0:00:06]} Rc2 {[%emt 0:00:31]} 62. Bf4+ {[%emt 0:00:46]}
Kg7 {[%emt 0:00:03]} 63. Be5+ {[%emt 0:00:13]} Kh6 {[%emt 0:00:16]} 64. Bd4 {
[%emt 0:00:12]} a3 {[%emt 0:00:19]} 65. Be4 {[%emt 0:00:18]} Rc4 {[%emt 0:00:
00]} 66. Bd5 {[%emt 0:00:31]} Ra4 {[%emt 0:00:28]} 67. c6 {[%emt 0:00:27]} Bc8
{[%emt 0:01:01]} 68. Kg3 {[%emt 0:00:21]} a2 {[%emt 0:00:12]} 69. Ba1 {[%emt 0:
00:00]} Rb4 {[%emt 0:00:37]} 70. Bc3 {[%emt 0:00:46]} Ra4 {[%emt 0:00:14]} 71.
Ba1 {[%emt 0:00:44]} Rb4 {[%emt 0:00:05]} 72. Nd2 {[%emt 0:00:56]} Rb1 {
[%emt 0:00:14]} 73. Nb3 {[%emt 0:00:56]} Rd1 {[%emt 0:00:47]} 74. Bc4 {[%emt 0:
00:00]} Rd6 {[%emt 0:00:31]} 75. Na5 {[%emt 0:00:26]} Rd1 {[%emt 0:00:19]} 76.
Nb3 {[%emt 0:00:06]} Rd6 {[%emt 0:00:10]} 77. Bb5 {[%emt 0:00:29]} Rd5 {
[%emt 0:00:42]} 78. Ba4 {[%emt 0:00:42]} Rd1 {[%emt 0:00:39]} 79. Kf2 {[%emt 0:
00:00]} Kg6 {[%emt 0:00:28]} 80. Ke2 {[%emt 0:00:21]} Bg4+ {[%emt 0:00:01]} 81.
Ke3 {[%emt 0:00:08]} Kf7 {[%emt 0:00:32]} 82. Bb5 {[%emt 0:01:16]} Ke7 {
[%emt 0:00:38]} 83. Bd4 {[%emt 0:00:59]} Kd6 {[%emt 0:00:41]} 84. Bc3 {[%emt 0:
00:00]} Be6 {[%emt 0:00:47]} 85. Bb4+ {[%emt 0:00:31]} Kc7 {[%emt 0:00:13]} 86.
Ba5+ {[%emt 0:00:08]} Kd6 {[%emt 0:00:15]} 87. Bb4+ {[%emt 0:00:07]} Kc7 {
[%emt 0:00:10]} 88. Ba5+ {[%emt 0:00:06]} Kd6 {[%emt 0:02:00]} 89. Bb4+ {
[%emt 0:00:30]} 1/2-1/2

[Event "44th Chess Olympiad Open 2022"]
[Site "Chennai"]
[Date "2022.08.06"]
[Round "8.64"]
[White "Espirito Santo, Waldyr"]
[Black "Vella, Duncan"]
[Result "1-0"]
[WhiteElo "1922"]
[BlackElo "1985"]
[Annotator "NA RC"]
[PlyCount "107"]
[EventDate "2022.??.??"]
[TimeControl "60"]

1. e4 {[%emt 0:00:03]} c5 {[%emt 0:00:12]} 2. c3 {[%emt 0:00:19]} Nf6 {[%emt 0:
00:00]} 3. e5 {[%emt 0:00:09]} Nd5 {[%emt 0:00:05]} 4. Nf3 {[%emt 0:00:38]} Nc6
{[%emt 0:00:39]} 5. Bc4 {[%emt 0:00:57]} Nb6 {[%emt 0:02:43]} 6. Bb3 {[%emt 0:
00:00]} d5 {[%emt 0:08:22]} 7. exd6 {[%emt 0:02:32]} Qxd6 {[%emt 0:01:08]} 8.
d4 {[%emt 0:02:04]} cxd4 {[%emt 0:02:57]} 9. cxd4 {[%emt 0:06:54]} Be6 {
[%emt 0:09:44]} 10. O-O {[%emt 0:02:54]} Bxb3 {[%emt 0:02:03]} 11. Qxb3 {
[%emt 0:01:44]} e6 {[%emt 0:11:07]} 12. Nc3 {[%emt 0:06:56]} Be7 {[%emt 0:00:
00]} 13. Nb5 {[%emt 0:01:53]} Qd8 {[%emt 0:00:16]} 14. Bf4 {[%emt 0:02:48]} Nd5
{[%emt 0:00:53]} 15. Bg3 {[%emt 0:02:31]} O-O {[%emt 0:01:46]} 16. Nc3 {
[%emt 0:02:32]} Nxc3 {[%emt 0:11:05]} 17. bxc3 {[%emt 0:00:17]} b6 {[%emt 0:00:
00]} 18. Qa4 {[%emt 0:03:54]} Rc8 {[%emt 0:03:55]} 19. Rac1 {[%emt 0:01:21]}
Bd6 {[%emt 0:01:47]} 20. Bxd6 {[%emt 0:01:18]} Qxd6 {[%emt 0:00:03]} 21. Rfe1 {
[%emt 0:01:26]} Rc7 {[%emt 0:03:11]} 22. Qb5 {[%emt 0:02:32]} Rfc8 {[%emt 0:00:
00]} 23. Qg5 {[%emt 0:03:58]} Na5 {[%emt 0:03:45]} 24. Nd2 {[%emt 0:06:47]} h6
{[%emt 0:08:50]} 25. Qe3 {[%emt 0:01:43]} Qa3 {[%emt 0:01:54]} 26. Ne4 {
[%emt 0:02:26]} Qxa2 {[%emt 0:03:50]} 27. g4 {[%emt 0:02:39]} Qd5 {[%emt 0:00:
00]} 28. g5 {[%emt 0:00:21]} Nc4 {[%emt 0:02:29]} 29. Qg3 {[%emt 0:00:55]} hxg5
{[%emt 0:01:14]} 30. Nxg5 {[%emt 0:00:34]} Qf5 {[%emt 0:03:28]} 31. h4 {
[%emt 0:03:34]} Rd7 {[%emt 0:01:25]} 32. Re4 {[%emt 0:01:12]} Nd6 {[%emt 0:00:
00]} 33. Rg4 {[%emt 0:01:18]} Ne8 {[%emt 0:01:14]} 34. Nf3 {[%emt 0:00:43]} f6
{[%emt 0:01:03]} 35. Kg2 {[%emt 0:01:35]} Qh5 {[%emt 0:01:08]} 36. Re1 {
[%emt 0:01:47]} Re7 {[%emt 0:01:06]} 37. Re3 {[%emt 0:01:38]} a5 {[%emt 0:00:
00]} 38. Ne1 {[%emt 0:01:29]} a4 {[%emt 0:01:15]} 39. Nc2 {[%emt 0:00:15]} Qd5+
{[%emt 0:01:00]} 40. Kh2 {[%emt 0:00:33]} Qh5 {[%emt 0:01:34]} 41. f3 {[%emt 0:
00:00]} Rd8 {[%emt 0:11:19]} 42. Rg6 {[%emt 0:00:00]} Kf7 {[%emt 0:02:09]} 43.
Rg4 {[%emt 0:00:00]} Qh6 {[%emt 0:04:17]} 44. Re2 {[%emt 0:00:00]} Nd6 {
[%emt 0:01:32]} 45. Ne3 {[%emt 0:00:00]} Ne8 {[%emt 0:02:14]} 46. f4 {[%emt 0:
00:00]} Nd6 {[%emt 0:03:02]} 47. Rg2 {[%emt 0:00:00]} Rg8 {[%emt 0:01:20]} 48.
Qf3 {[%emt 0:00:00]} f5 {[%emt 0:00:57]} 49. R4g3 {[%emt 0:00:00]} Qxh4+ {
[%emt 0:01:18]} 50. Rh3 {[%emt 0:00:00]} Qf6 {[%emt 0:00:39]} 51. Qc6 {[%emt 0:
00:00]} Ne4 {[%emt 0:01:15]} 52. Nc4 {[%emt 0:05:38]} Ree8 {[%emt 0:02:12]} 53.
Ne5+ {[%emt 0:00:38]} Kf8 {[%emt 0:00:58]} 54. Nd7+ {[%emt 0:00:13]} 1-0

[Event "44th Chess Olympiad Open 2022"]
[Site "Chennai"]
[Date "2022.08.06"]
[Round "8.64"]
[White "Mizzi, Jack"]
[Black "Lima, Osvaldo Dos Santos"]
[Result "1-0"]
[WhiteElo "1913"]
[BlackElo "1863"]
[Annotator "NA RC"]
[PlyCount "65"]
[EventDate "2022.??.??"]
[TimeControl "60"]

1. d4 {[%emt 0:00:05]} Nf6 {[%emt 0:00:11]} 2. c4 {[%emt 0:00:10]} g6 {[%emt 0:
00:00]} 3. g3 {[%emt 0:00:53]} Bg7 {[%emt 0:00:53]} 4. Bg2 {[%emt 0:00:16]} d6
{[%emt 0:00:32]} 5. Nf3 {[%emt 0:00:20]} O-O {[%emt 0:01:30]} 6. O-O {[%emt 0:
00:00]} Nc6 {[%emt 0:00:03]} 7. d5 {[%emt 0:04:46]} Ne5 {[%emt 0:06:22]} 8.
Nxe5 {[%emt 0:01:09]} dxe5 {[%emt 0:00:01]} 9. Nc3 {[%emt 0:00:24]} Ne8 {
[%emt 0:06:03]} 10. Qb3 {[%emt 0:10:07]} Rb8 {[%emt 0:01:43]} 11. c5 {[%emt 0:
00:00]} b6 {[%emt 0:01:14]} 12. c6 {[%emt 0:01:21]} Nd6 {[%emt 0:00:51]} 13. a4
{[%emt 0:09:27]} a5 {[%emt 0:00:03]} 14. Nb5 {[%emt 0:12:24]} Ba6 {[%emt 0:00:
00]} 15. Bd2 {[%emt 0:07:18]} f5 {[%emt 0:01:23]} 16. f4 {[%emt 0:01:57]} exf4
{[%emt 0:08:55]} 17. Bxf4 {[%emt 0:04:35]} h6 {[%emt 0:00:12]} 18. Bxd6 {
[%emt 0:04:42]} exd6 {[%emt 0:00:32]} 19. e4 {[%emt 0:01:07]} Bxb5 {[%emt 0:00:
00]} 20. axb5 {[%emt 0:00:57]} Qf6 {[%emt 0:02:38]} 21. exf5 {[%emt 0:04:38]}
Qxb2 {[%emt 0:02:10]} 22. Qxb2 {[%emt 0:00:20]} Bxb2 {[%emt 0:00:31]} 23. Ra4 {
[%emt 0:01:33]} Rxf5 {[%emt 0:02:01]} 24. Rxf5 {[%emt 0:00:14]} gxf5 {[%emt 0:
00:00]} 25. Bh3 {[%emt 0:00:40]} Rf8 {[%emt 0:01:36]} 26. Rf4 {[%emt 0:03:34]}
Ra8 {[%emt 0:04:09]} 27. Ra4 {[%emt 0:03:52]} Rf8 {[%emt 0:00:22]} 28. Rf4 {
[%emt 0:00:16]} Be5 {[%emt 0:12:29]} 29. Rxf5 {[%emt 0:01:44]} Ra8 {[%emt 0:00:
00]} 30. Rxe5 {[%emt 0:10:25]} dxe5 {[%emt 0:00:02]} 31. d6 {[%emt 0:00:08]}
Ra7 {[%emt 0:00:04]} 32. Bc8 {[%emt 0:01:01]} Kf8 {[%emt 0:02:15]} 33. Bb7 {
[%emt 0:00:16]} 1-0

[Event "44th Chess Olympiad Open 2022"]
[Site "Chennai"]
[Date "2022.08.06"]
[Round "8.65"]
[White "Etienne, Angelo"]
[Black "Deng, Yu Dong Michael"]
[Result "0-1"]
[WhiteElo "2036"]
[BlackElo "2028"]
[Annotator "NA RC"]
[PlyCount "136"]
[EventDate "2022.??.??"]
[TimeControl "60"]

1. Nf3 {[%emt 0:00:06]} d5 {[%emt 0:00:38]} 2. c4 {[%emt 0:00:04]} Nf6 {
[%emt 0:01:15]} 3. e3 {[%emt 0:00:18]} e6 {[%emt 0:01:22]} 4. Be2 {[%emt 0:00:
00]} c5 {[%emt 0:02:23]} 5. b3 {[%emt 0:01:07]} Be7 {[%emt 0:01:13]} 6. Bb2 {
[%emt 0:00:06]} O-O {[%emt 0:00:10]} 7. O-O {[%emt 0:00:17]} b6 {[%emt 0:03:41]
} 8. d4 {[%emt 0:00:36]} Bb7 {[%emt 0:03:08]} 9. dxc5 {[%emt 0:00:45]} Bxc5 {
[%emt 0:03:01]} 10. Nc3 {[%emt 0:00:31]} Nbd7 {[%emt 0:06:08]} 11. cxd5 {
[%emt 0:00:54]} Nxd5 {[%emt 0:01:17]} 12. Nxd5 {[%emt 0:01:19]} Bxd5 {[%emt 0:
00:00]} 13. b4 {[%emt 0:01:18]} Be7 {[%emt 0:02:44]} 14. a3 {[%emt 0:03:36]} a6
{[%emt 0:06:59]} 15. Qb1 {[%emt 0:00:39]} b5 {[%emt 0:10:44]} 16. Rd1 {[%emt 0:
00:00]} Bf6 {[%emt 0:10:00]} 17. Bxf6 {[%emt 0:02:35]} Nxf6 {[%emt 0:01:18]}
18. a4 {[%emt 0:00:28]} Ne4 {[%emt 0:12:17]} 19. Qb2 {[%emt 0:01:29]} Qb6 {
[%emt 0:01:04]} 20. Nd4 {[%emt 0:01:20]} Nd6 {[%emt 0:03:09]} 21. axb5 {
[%emt 0:07:59]} axb5 {[%emt 0:01:20]} 22. Rxa8 {[%emt 0:03:18]} Rxa8 {[%emt 0:
00:00]} 23. Ra1 {[%emt 0:00:02]} Rxa1+ {[%emt 0:14:06]} 24. Qxa1 {[%emt 0:00:
00]} e5 {[%emt 0:00:53]} 25. Bf3 {[%emt 0:02:46]} Bxf3 {[%emt 0:01:31]} 26.
Nxf3 {[%emt 0:00:05]} f6 {[%emt 0:01:19]} 27. Qa8+ {[%emt 0:00:02]} Kf7 {
[%emt 0:00:07]} 28. Qd5+ {[%emt 0:00:09]} Kf8 {[%emt 0:01:10]} 29. h4 {[%emt 0:
00:00]} Nc8 {[%emt 0:03:48]} 30. h5 {[%emt 0:00:42]} Ne7 {[%emt 0:01:08]} 31.
Qe4 {[%emt 0:01:40]} Kg8 {[%emt 0:00:36]} 32. Nd4 {[%emt 0:02:37]} Qd6 {
[%emt 0:03:15]} 33. Nf3 {[%emt 0:00:53]} Qd5 {[%emt 0:00:41]} 34. Qg4 {[%emt 0:
00:00]} Qc4 {[%emt 0:00:19]} 35. Qd7 {[%emt 0:01:00]} Kf7 {[%emt 0:00:26]} 36.
Qd6 {[%emt 0:00:29]} Qc1+ {[%emt 0:00:42]} 37. Kh2 {[%emt 0:00:03]} Qc6 {
[%emt 0:00:33]} 38. Qb8 {[%emt 0:00:27]} Qc4 {[%emt 0:00:23]} 39. Qd6 {[%emt 0:
00:00]} Qc6 {[%emt 0:00:08]} 40. Qd2 {[%emt 0:01:25]} Qc4 {[%emt 0:00:40]} 41.
Qd6 {[%emt 0:39:31]} Qd5 {[%emt 0:02:13]} 42. Qb8 {[%emt 0:00:00]} Qc4 {
[%emt 0:09:34]} 43. Qd6 {[%emt 0:00:00]} Qe2 {[%emt 0:01:53]} 44. Qd7 {[%emt 0:
00:00]} Qxf2 {[%emt 0:01:44]} 45. Qxb5 {[%emt 0:00:00]} Qxe3 {[%emt 0:00:10]}
46. Qc4+ {[%emt 0:00:00]} Kf8 {[%emt 0:00:49]} 47. b5 {[%emt 0:00:00]} Qf4+ {
[%emt 0:09:32]} 48. Qxf4 {[%emt 0:00:00]} exf4 {[%emt 0:00:04]} 49. Kh3 {
[%emt 0:00:00]} Nd5 {[%emt 0:01:10]} 50. Kg4 {[%emt 0:00:00]} Ke7 {[%emt 0:00:
00]} 51. Nd4 {[%emt 0:00:00]} g5 {[%emt 0:01:10]} 52. h6 {[%emt 0:00:00]} Ne3+
{[%emt 0:03:49]} 53. Kf3 {[%emt 0:00:00]} Nc4 {[%emt 0:00:42]} 54. Ke4 {
[%emt 0:00:00]} Ne3 {[%emt 0:01:19]} 55. g3 {[%emt 0:00:00]} f5+ {[%emt 0:00:
00]} 56. Kf3 {[%emt 0:00:00]} Nc4 {[%emt 0:00:40]} 57. Nxf5+ {[%emt 0:00:00]}
Kf6 {[%emt 0:00:16]} 58. g4 {[%emt 0:00:00]} Ne5+ {[%emt 0:00:34]} 59. Ke4 {
[%emt 0:00:00]} Nxg4 {[%emt 0:00:43]} 60. b6 {[%emt 0:00:00]} Ne5 {[%emt 0:00:
00]} 61. b7 {[%emt 0:00:00]} Nd7 {[%emt 0:00:14]} 62. Kd5 {[%emt 0:00:00]} Kxf5
{[%emt 0:00:10]} 63. Kd6 {[%emt 0:00:00]} Nb8 {[%emt 0:00:08]} 64. Kc7 {
[%emt 0:00:00]} f3 {[%emt 0:00:37]} 65. Kxb8 {[%emt 0:00:00]} f2 {[%emt 0:00:
00]} 66. Kc8 {[%emt 0:00:00]} f1=Q {[%emt 0:00:06]} 67. b8=Q {[%emt 0:00:00]}
Qc4+ {[%emt 0:00:35]} 68. Kd7 {[%emt 0:00:00]} Qe6+ {[%emt 0:00:11]} 0-1

[Event "44th Chess Olympiad Open 2022"]
[Site "Chennai"]
[Date "2022.08.06"]
[Round "8.65"]
[White "Gabriel, Davidson"]
[Black "Kannappan, Thanneermalai"]
[Result "1-0"]
[WhiteElo "1915"]
[BlackElo "1699"]
[Annotator "NA RC"]
[PlyCount "97"]
[EventDate "2022.??.??"]
[TimeControl "60"]

1. d4 {[%emt 0:00:04]} Nf6 {[%emt 0:00:17]} 2. c4 {[%emt 0:00:27]} g6 {[%emt 0:
00:00]} 3. Nc3 {[%emt 0:00:41]} d5 {[%emt 0:00:18]} 4. cxd5 {[%emt 0:01:51]}
Nxd5 {[%emt 0:00:22]} 5. e4 {[%emt 0:01:21]} Nxc3 {[%emt 0:00:30]} 6. bxc3 {
[%emt 0:01:02]} Bg7 {[%emt 0:00:09]} 7. Bc4 {[%emt 0:02:00]} c5 {[%emt 0:00:29]
} 8. Ne2 {[%emt 0:00:34]} Nc6 {[%emt 0:00:19]} 9. Be3 {[%emt 0:01:01]} O-O {
[%emt 0:00:47]} 10. O-O {[%emt 0:00:46]} Bg4 {[%emt 0:00:21]} 11. f3 {[%emt 0:
00:00]} Bd7 {[%emt 0:00:14]} 12. Qd2 {[%emt 0:02:39]} Qa5 {[%emt 0:00:22]} 13.
Qb2 {[%emt 0:03:45]} b5 {[%emt 0:00:16]} 14. Bd5 {[%emt 0:03:23]} e6 {[%emt 0:
00:00]} 15. Bxc6 {[%emt 0:03:52]} Bxc6 {[%emt 0:00:06]} 16. dxc5 {[%emt 0:00:
00]} Rfd8 {[%emt 0:11:37]} 17. Nd4 {[%emt 0:01:13]} Be8 {[%emt 0:01:49]} 18.
Bg5 {[%emt 0:04:31]} Rdc8 {[%emt 0:03:08]} 19. Be7 {[%emt 0:00:53]} e5 {
[%emt 0:10:46]} 20. Nb3 {[%emt 0:02:05]} Qa4 {[%emt 0:01:49]} 21. Rad1 {
[%emt 0:02:21]} f6 {[%emt 0:04:00]} 22. Rf2 {[%emt 0:03:42]} Bf7 {[%emt 0:00:
00]} 23. Rfd2 {[%emt 0:00:17]} Be6 {[%emt 0:00:33]} 24. Nc1 {[%emt 0:03:01]}
Kf7 {[%emt 0:02:09]} 25. Bd6 {[%emt 0:04:03]} Bh6 {[%emt 0:00:31]} 26. Ne2 {
[%emt 0:02:25]} Bxd2 {[%emt 0:02:13]} 27. Rxd2 {[%emt 0:00:36]} a5 {[%emt 0:00:
00]} 28. a3 {[%emt 0:03:04]} Ra7 {[%emt 0:02:58]} 29. h4 {[%emt 0:01:11]} Rb7 {
[%emt 0:00:57]} 30. Kh2 {[%emt 0:02:51]} b4 {[%emt 0:03:51]} 31. cxb4 {[%emt 0:
00:00]} axb4 {[%emt 0:00:11]} 32. axb4 {[%emt 0:00:24]} Rxb4 {[%emt 0:01:14]}
33. Qc1 {[%emt 0:00:23]} Rc4 {[%emt 0:07:27]} 34. Qg1 {[%emt 0:01:52]} Qb3 {
[%emt 0:01:49]} 35. Qa1 {[%emt 0:02:00]} Ra4 {[%emt 0:02:19]} 36. Qc1 {[%emt 0:
00:00]} Ra2 {[%emt 0:04:57]} 37. Rxa2 {[%emt 0:01:19]} Qxa2 {[%emt 0:00:17]}
38. Qh6 {[%emt 0:02:46]} Kg8 {[%emt 0:02:39]} 39. h5 {[%emt 0:03:28]} Bf7 {
[%emt 0:03:01]} 40. Nc3 {[%emt 0:00:49]} Qa7 {[%emt 0:02:17]} 41. hxg6 {
[%emt 0:30:29]} Bxg6 {[%emt 0:31:02]} 42. Nd5 {[%emt 0:00:30]} Kf7 {[%emt 0:00:
00]} 43. Qh4 {[%emt 0:00:00]} Re8 {[%emt 0:00:00]} 44. Qxf6+ {[%emt 0:00:00]}
Kg8 {[%emt 0:00:00]} 45. Bxe5 {[%emt 0:00:00]} Rxe5 {[%emt 0:00:00]} 46. Qxe5 {
[%emt 0:00:00]} Qa5 {[%emt 0:00:00]} 47. c6 {[%emt 0:00:00]} Qe1 {[%emt 0:00:
00]} 48. Qf6 {[%emt 0:00:00]} Bf7 {[%emt 0:00:00]} 49. c7 {[%emt 0:00:00]} 1-0